bitfinex/quotes_ETHUSD_20230118
["timestamp","ask_amount","ask_price","bid_price","bid_amount"]
[1674053285923,0.07835668,1590.6,1590.4,0.65749031]
[1674053286082,0.07835668,1590.6,1590.5,25.14932]
[1674053289444,0.07835668,1590.6,1590.5,18.86199]
[1674053290019,0.99535668,1590.6,1590.5,18.86199]
[1674053290406,0.07835668,1590.6,1590.5,18.86199]
[1674053291755,0.99535668,1590.6,1590.4,0.066]
[1674053292006,0.4717,1590.5,1590.2,12.57656]
[1674053292438,0.4717,1590.5,1590.2,18.86484]
[1674053293014,1.55005668,1590.6,1590.2,18.86484]
[1674053293278,0.55005668,1590.6,1590.2,18.86484]
[1674053293493,1.55005668,1590.6,1590.2,18.86484]
[1674053294718,0.55005668,1590.6,1590.2,18.86484]
[1674053296102,0.07835668,1590.6,1590.3,1.421]
[1674053296432,0.07835668,1590.6,1590.4,18.86316]
[1674053296967,0.07835668,1590.6,1590.3,1.487]
[1674053297194,0.07835668,1590.6,1590.4,18.86316]
[1674053297700,0.07835668,1590.6,1590.4,12.57544]
[1674053297918,0.07835668,1590.6,1590.4,18.86316]
[1674053301068,0.07835668,1590.6,1590.4,20.28316]
[1674053301214,0.07835668,1590.6,1590.5,1.0]
[1674053301424,0.07835668,1590.6,1590.5,19.86199]
[1674053301641,0.07835668,1590.6,1590.5,18.86199]
[1674053301987,0.07835668,1590.6,1590.5,20.28199]
[1674053302968,0.07835668,1590.6,1590.5,18.86199]
[1674053303320,0.99535668,1590.6,1590.5,12.57466]
[1674053303587,0.07835668,1590.6,1590.5,12.57466]
[1674053304705,0.07835668,1590.6,1590.5,18.86199]
[1674053306002,0.07835668,1590.6,1590.5,20.28199]
[1674053306319,0.07052102,1590.6,1590.5,27.17165351]
[1674053306508,0.07052102,1590.6,1590.5,22.44098258]
[1674053306697,0.07052102,1590.6,1590.5,21.02098258]
[1674053308594,0.07052102,1590.6,1590.5,20.36385521]
[1674053309702,0.07052102,1590.6,1590.5,20.93911737]
[1674053309917,0.06994258,1591.0,1590.5,27.55511606]
[1674053310077,0.06994258,1591.0,1590.8,1.42]
[1674053310437,0.06994258,1591.0,1590.9,25.143]
[1674053313337,0.06994258,1591.0,1590.9,26.563]
[1674053313555,0.06994258,1591.0,1590.9,25.143]
[1674053318266,0.06994258,1591.0,1590.9,26.563]
[1674053318429,0.06994258,1591.0,1590.9,27.977]
[1674053318646,0.06994258,1591.0,1590.9,25.143]
[1674053319179,0.06994258,1591.0,1590.9,26.555]
[1674053321145,0.06994258,1591.0,1590.9,28.63142423]
[1674053321429,0.04644514,1591.0,1590.9,28.63142423]
[1674053321727,0.04644514,1591.0,1590.9,28.71328568]
[1674053322338,0.07955537,1591.1,1590.9,28.71328568]
[1674053322672,0.07955537,1591.1,1591.0,20.33061324]
[1674053323823,0.07955537,1591.1,1591.0,20.27605]
[1674053324662,0.07955537,1591.1,1591.0,18.85605]
[1674053325402,0.07955537,1591.1,1591.0,20.26805]
[1674053325624,0.07955537,1591.1,1591.0,20.27005]
[1674053325841,0.07955537,1591.1,1591.0,20.36536701]
[1674053326172,0.07955537,1591.1,1591.0,20.84542875]
[1674053326299,0.07955537,1591.1,1591.0,21.50185298]
[1674053326513,0.07955537,1591.1,1591.0,20.84542875]
[1674053327578,0.07955537,1591.1,1591.0,21.50185298]
[1674053327781,0.07955537,1591.1,1591.0,22.91685298]
[1674053328557,0.07955537,1591.1,1591.0,22.26042875]
[1674053328924,0.07955537,1591.1,1591.0,22.91685298]
[1674053329361,0.0082767,1591.1,1591.0,24.55788008]
[1674053329823,3.5979769,1591.2,1591.1,1.0219933]
[1674053330138,0.08086307,1591.4,1591.2,2.414]
[1674053330285,0.08086307,1591.4,1591.3,2.92431701]
[1674053330498,0.08086307,1591.4,1591.3,26.65399701]
[1674053330707,0.08086307,1591.4,1591.3,26.55668]
[1674053331555,0.08086307,1591.4,1591.3,27.54843442]
[1674053332090,0.08086307,1591.4,1591.3,30.59476874]
[1674053332304,0.0091869,1591.7,1591.3,29.61116815]
[1674053332493,0.0091869,1591.7,1591.6,26.55192]
[1674053332913,0.0091869,1591.7,1591.6,29.70742526]
[1674053333170,0.08386455,1591.8,1591.6,29.70742526]
[1674053333347,0.08386455,1591.8,1591.7,4.92677153]
[1674053333560,0.08386455,1591.8,1591.7,17.49195153]
[1674053333782,4.55e-06,1591.8,1591.7,17.49195153]
[1674053334023,2.23525536,1591.9,1591.8,13.56438]
[1674053334351,2.23525536,1591.9,1591.8,18.14188526]
[1674053334647,5.36e-06,1591.9,1591.8,17.48615153]
[1674053334872,6.46604067,1592.0,1591.8,18.14188526]
[1674053335175,6.46604067,1592.0,1591.9,5.57350526]
[1674053335384,6.46604067,1592.0,1591.9,18.13710526]
[1674053335696,6.36604067,1592.0,1591.9,18.13710526]
[1674053336539,6.36604067,1592.0,1591.9,17.48137153]
[1674053336734,6.36604067,1592.0,1591.9,18.13710526]
[1674053337132,0.08955415,1592.3,1592.0,2.054]
[1674053337327,0.08955415,1592.3,1592.2,1.42]
[1674053337561,9.3743,1592.7,1592.2,1.42]
[1674053337562,8.81979175,1592.7,1592.2,15.07159525]
[1674053337757,8.81979175,1592.7,1592.6,20.25712]
[1674053337967,0.099,1592.7,1592.6,20.25712]
[1674053338209,0.0048222,1592.8,1592.6,20.25712]
[1674053338606,0.0048222,1592.8,1592.6,26.53616]
[1674053339238,0.0048222,1592.8,1592.7,1.412]
[1674053339486,0.0048222,1592.8,1592.7,15.38928]
[1674053340075,0.0048222,1592.8,1592.7,13.97728]
[1674053341154,0.9218222,1592.8,1592.7,13.97728]
[1674053341365,1.0188222,1592.8,1592.7,6.27864]
[1674053341763,0.0048222,1592.8,1592.7,6.27864]
[1674053342232,0.0048222,1592.8,1592.7,12.55728]
[1674053343020,0.075,1593.1,1592.7,13.97728]
[1674053343260,0.021,1593.1,1592.7,13.97728]
[1674053343476,0.10260228,1593.2,1592.7,12.55728]
[1674053344271,1.42,1593.0,1592.7,12.55728]
[1674053345296,11.23730228,1593.2,1592.7,12.55728]
[1674053345603,17.51401228,1593.2,1592.7,12.55728]
[1674053345978,1.0,1593.1,1592.7,12.55728]
[1674053346705,1.406,1592.9,1592.7,6.27864]
[1674053347183,28.07036,1593.1,1592.7,12.55728]
[1674053347184,1.41,1593.0,1592.7,12.55728]
[1674053347550,1.41,1593.0,1592.7,6.27864]
[1674053348233,1.881,1593.0,1592.7,6.27864]
[1674053348827,1.881,1593.0,1592.7,12.55728]
[1674053349460,1.881,1593.0,1592.7,6.27864]
[1674053349668,1.417,1592.9,1592.7,6.27864]
[1674053349879,1.42,1592.8,1592.6,0.066]
[1674053350231,1.42,1592.8,1592.4,6.27976]
[1674053350232,1.406,1592.7,1592.5,6.27942]
[1674053350760,2.8881,1592.8,1592.5,6.27942]
[1674053351137,1.42,1592.6,1592.4,6.3456]
[1674053351446,1.412,1592.7,1592.4,6.2796]
[1674053351447,1.406,1592.5,1592.4,6.2796]
[1674053351679,1.406,1592.5,1592.3,18.90611]
[1674053351909,1.406,1592.5,1592.3,18.84011]
[1674053352813,28.46798,1592.7,1592.3,18.84011]
[1674053352814,20.7773,1592.7,1592.3,18.84011]
[1674053353342,0.099,1592.7,1592.3,18.84011]
[1674053353552,9.2731,1592.9,1592.3,18.84011]
[1674053353760,9.2731,1592.9,1592.3,20.26011]
[1674053354425,9.2731,1592.9,1592.3,18.84011]
[1674053355110,8.11001317,1592.9,1592.3,18.84011]
[1674053356167,1.412,1592.8,1592.3,18.84011]
[1674053356431,1.42,1592.7,1592.3,18.84011]
[1674053356829,9.99301317,1592.9,1592.3,18.84011]
[1674053357740,15.79989317,1592.9,1592.3,18.84011]
[1674053357945,16.27089317,1592.9,1592.3,18.84011]
[1674053358421,15.79989317,1592.9,1592.3,18.84011]
[1674053359169,1.0,1592.8,1592.3,18.84011]
[1674053359338,22.07801317,1592.9,1592.3,18.84011]
[1674053359682,15.79989317,1592.9,1592.4,1.0]
[1674053359897,8.11001317,1592.9,1592.5,18.83769]
[1674053360467,0.099,1592.9,1592.5,18.83769]
[1674053360679,22.2873,1593.0,1592.5,18.83769]
[1674053361639,22.2873,1593.0,1592.6,1.0]
[1674053361863,22.2873,1593.0,1592.7,18.83568]
[1674053362045,0.099,1593.0,1592.7,18.83568]
[1674053362255,10.7759,1593.1,1592.7,18.83568]
[1674053362256,10.8749,1593.1,1592.7,18.83568]
[1674053362817,1.519,1593.1,1592.7,18.83568]
[1674053363011,1.42,1593.1,1592.7,18.83568]
[1674053363637,1.252,1593.1,1592.7,18.83568]
[1674053365161,27.47003228,1593.2,1592.7,18.83568]
[1674053365162,22.44030228,1593.2,1592.7,18.83568]
[1674053365303,28.71698228,1593.2,1592.7,18.83568]
[1674053365966,22.44030228,1593.2,1592.7,18.83568]
[1674053366355,21.19330228,1593.2,1592.7,18.83568]
[1674053366565,21.19330228,1593.2,1592.8,1.0]
[1674053366816,21.19330228,1593.2,1592.9,18.83334]
[1674053367032,0.20160228,1593.2,1592.9,18.83334]
[1674053367308,0.10260228,1593.2,1593.0,1.0]
[1674053367562,0.10260228,1593.2,1592.9,18.89934]
[1674053367830,0.10260228,1593.2,1592.9,18.83334]
[1674053368326,0.10260228,1593.2,1593.1,18.83118]
[1674053369413,0.10260228,1593.2,1593.1,6.27706]
[1674053369623,0.10260228,1593.2,1593.0,6.34333]
[1674053369872,0.10260228,1593.2,1593.1,6.27706]
[1674053370065,0.10260228,1593.2,1593.1,12.55412]
[1674053370275,0.10260228,1593.2,1593.1,18.83118]
[1674053372482,0.10260228,1593.2,1593.1,20.57431241]
[1674053372796,22.04833864,1593.5,1593.3,18.82884]
[1674053373015,0.19963864,1593.5,1593.3,18.82884]
[1674053373232,0.10063864,1593.5,1593.2,0.27120456]
[1674053373553,1.253,1593.4,1593.2,0.20520456]
[1674053373724,1.7239,1593.4,1593.2,0.20520456]
[1674053373936,1.7239,1593.4,1593.2,19.03511456]
[1674053374165,1.34663864,1593.5,1593.2,19.03511456]
[1674053374395,0.10063864,1593.5,1593.2,19.03511456]
[1674053375011,22.9045713,1593.6,1593.2,19.03511456]
[1674053376087,22.9045713,1593.6,1593.4,18.82764]
[1674053376259,1.2901713,1593.6,1593.4,18.82764]
[1674053376456,1.1911713,1593.6,1593.4,18.82764]
[1674053377548,1.1911713,1593.6,1593.4,6.27588]
[1674053377886,1.1911713,1593.6,1593.3,6.34197]
[1674053377887,6.81230785,1593.6,1593.3,0.066]
[1674053378094,1.8858,1593.5,1593.2,6.48162456]
[1674053378243,1.415,1593.5,1593.2,12.75808456]
[1674053379163,1.94718785,1593.6,1593.2,19.03475456]
[1674053379717,2.412,1593.5,1593.2,6.48162456]
[1674053379943,1.412,1593.5,1593.2,6.48162456]
[1674053380194,1.414,1593.4,1593.2,0.20520456]
[1674053380509,1.414,1593.4,1593.2,6.48184456]
[1674053380660,14.59450785,1593.6,1593.2,6.48184456]
[1674053380869,20.86990785,1593.6,1593.2,6.48184456]
[1674053381873,8.31934785,1593.6,1593.2,12.75851456]
[1674053382508,2.04418785,1593.6,1593.2,12.75851456]
[1674053382819,2.04418785,1593.6,1593.2,19.03518456]
[1674053382820,0.53718785,1593.6,1593.2,19.03518456]
[1674053383389,8.22540785,1593.6,1593.2,12.75851456]
[1674053383616,8.32440785,1593.6,1593.2,12.75851456]
[1674053384083,12.55412971,1593.6,1593.2,0.20520456]
[1674053384394,21.34552785,1593.6,1593.2,0.20520456]
[1674053384610,15.07030785,1593.6,1593.2,0.20520456]
[1674053384761,1.0,1593.5,1593.2,0.20520456]
[1674053384973,0.4709,1593.4,1593.2,0.20520456]
[1674053385760,2.8858,1593.5,1593.2,0.20520456]
[1674053386158,1.8858,1593.5,1593.2,0.20520456]
[1674053386721,1.8858,1593.5,1593.2,6.48184456]
[1674053386903,1.415,1593.5,1593.2,6.48184456]
[1674053387723,1.415,1593.5,1593.2,0.20520456]
[1674053388367,2.415,1593.5,1593.2,0.20520456]
[1674053388716,1.415,1593.4,1593.2,0.20520456]
[1674053389253,1.415,1593.3,1593.2,0.20520456]
[1674053389382,3.83,1593.3,1593.2,0.20520456]
[1674053389700,10.10628,1593.3,1593.2,0.20520456]
[1674053389915,10.20528,1593.3,1593.2,0.20520456]
[1674053390123,9.20528,1593.3,1593.2,0.20520456]
[1674053390468,2.03,1593.3,1593.2,0.20520456]
[1674053390810,1.931,1593.3,1593.2,0.20520456]
[1674053391483,1.881,1593.3,1593.2,0.20520456]
[1674053393589,1.881,1593.3,1593.2,6.48187456]
[1674053393825,21.2846,1593.4,1593.2,19.03521456]
[1674053394804,0.099,1593.4,1593.2,19.03521456]
[1674053394968,11.10168785,1593.6,1593.2,19.03521456]
[1674053395601,9.68668785,1593.6,1593.2,19.03521456]
[1674053395812,9.68368785,1593.6,1593.2,19.03721456]
[1674053396063,0.63618785,1593.6,1593.2,19.03521456]
[1674053396374,0.53718785,1593.6,1593.2,19.03521456]
[1674053397928,1.53718785,1593.6,1593.2,19.03521456]
[1674053398791,1.415,1593.5,1593.2,19.03521456]
[1674053398981,1.95218785,1593.6,1593.2,19.03521456]
[1674053399152,2.95218785,1593.6,1593.2,19.03521456]
[1674053400201,1.95218785,1593.6,1593.2,19.03521456]
[1674053400836,0.53718785,1593.6,1593.3,1.08988865]
[1674053401169,20.8865678,1593.7,1593.3,1.08988865]
[1674053401170,0.1030678,1593.7,1593.4,20.88675372]
[1674053401359,0.0040678,1593.7,1593.5,1.08988865]
[1674053401572,0.0040678,1593.7,1593.6,18.8253]
[1674053402767,0.0040678,1593.7,1593.5,0.066]
[1674053402768,0.9210678,1593.7,1593.5,0.066]
[1674053402964,2.3320678,1593.7,1593.3,12.55224]
[1674053403309,2.3320678,1593.7,1593.4,6.27584]
[1674053403539,2.3320678,1593.7,1593.4,12.55172]
[1674053404049,1.414,1593.5,1593.3,6.34212]
[1674053404202,1.415,1593.5,1593.3,6.27612]
[1674053404414,1.415,1593.5,1593.3,12.5524]
[1674053404678,0.003,1593.6,1593.3,12.5524]
[1674053404679,1.415,1593.6,1593.3,12.5524]
[1674053405359,1.415,1593.6,1593.3,6.27612]
[1674053405885,1.415,1593.6,1593.3,18.82868]
[1674053406091,1.415,1593.6,1593.3,6.27612]
[1674053406426,1.415,1593.5,1593.2,12.82396456]
[1674053406635,1.415,1593.5,1593.2,19.03463456]
[1674053407055,6.3780278,1593.7,1593.2,19.03463456]
[1674053407056,0.1030678,1593.7,1593.2,19.03463456]
[1674053407266,0.0040678,1593.7,1593.3,1.0899327]
[1674053407497,0.0040678,1593.7,1593.4,18.8274]
[1674053408471,0.0040678,1593.7,1593.5,1.08979111]
[1674053408620,0.0040678,1593.7,1593.4,19.54651372]
[1674053408983,0.0040678,1593.7,1593.5,1.08979297]
[1674053409196,0.0040678,1593.7,1593.6,12.5502]
[1674053409513,0.9210678,1593.7,1593.6,12.5502]
[1674053409730,0.0040678,1593.7,1593.6,12.5502]
[1674053409897,0.0040678,1593.7,1593.6,18.8253]
[1674053410966,0.9210678,1593.7,1593.5,6.34144]
[1674053411181,2.3360678,1593.7,1593.5,6.27548]
[1674053412189,2.3360678,1593.7,1593.4,12.61744]
[1674053412454,2.3360678,1593.7,1593.5,12.55096]
[1674053412455,1.4190678,1593.7,1593.5,12.55096]
[1674053412982,0.0040678,1593.7,1593.5,18.82645]
[1674053417661,0.11601227,1593.9,1593.5,18.82645]
[1674053418236,0.11601227,1593.9,1593.6,1.08965795]
[1674053418448,0.11601227,1593.9,1593.7,18.8241]
[1674053419030,0.11601227,1593.9,1593.8,18.82293]
[1674053419601,0.11601227,1593.9,1593.8,12.54862]
[1674053419862,1.03301227,1593.9,1593.8,6.27431]
[1674053420017,0.11601227,1593.9,1593.8,18.82293]
[1674053421248,0.11601227,1594.0,1593.8,18.82293]
[1674053423608,0.11601227,1594.0,1593.9,1.0]
[1674053423873,0.11601227,1594.0,1593.9,23.73512049]
[1674053424091,0.12042741,1594.1,1594.0,1.34802453]
[1674053424415,0.12042741,1594.1,1594.0,26.91096865]
[1674053424720,0.12042741,1594.1,1594.0,26.25785493]
[1674053424896,0.12042741,1594.1,1594.0,25.25785493]
[1674053425238,0.12042741,1594.1,1594.0,26.50892261]
[1674053425448,0.12042741,1594.1,1594.0,25.41958453]
[1674053426874,0.12042741,1594.1,1594.0,28.14676256]
[1674053427085,0.12042741,1594.1,1594.0,26.51286547]
[1674053427315,0.12042741,1594.1,1594.0,25.42358453]
[1674053428551,0.12367665,1594.3,1594.0,25.42358453]
[1674053428769,0.12367665,1594.3,1594.2,2.508]
[1674053428978,0.12367665,1594.3,1594.2,27.59892]
[1674053429392,0.12367665,1594.3,1594.2,26.34592]
[1674053430671,0.12367665,1594.3,1594.2,27.59892]
[1674053431128,0.12367665,1594.3,1594.2,28.68801349]
[1674053431662,0.12367665,1594.3,1594.2,27.59892]
[1674053431815,0.12367665,1594.3,1594.2,28.68801644]
[1674053432446,0.12259946,1594.4,1594.3,2.211521]
[1674053432692,0.12259946,1594.4,1594.3,23.36453521]
[1674053432903,0.12259946,1594.4,1594.3,24.99825733]
[1674053433301,0.12259946,1594.4,1594.3,22.275541]
[1674053433535,0.12259946,1594.4,1594.3,21.275541]
[1674053433868,0.12259946,1594.4,1594.3,19.014541]
[1674053434234,0.12259946,1594.4,1594.3,20.269541]
[1674053434703,0.12259946,1594.4,1594.3,21.3585388]
[1674053435026,0.12259946,1594.4,1594.3,21.35856846]
[1674053435188,0.16782738,1594.5,1594.3,29.53602218]
[1674053435396,0.16782738,1594.5,1594.4,21.31885]
[1674053435609,0.16782738,1594.5,1594.4,22.40775829]
[1674053435820,0.12849415,1594.9,1594.5,1.0]
[1674053436262,0.12849415,1594.9,1594.6,25.08432]
[1674053436472,0.12849415,1594.9,1594.8,26.33648]
[1674053437849,0.12849415,1594.9,1594.8,27.59148]
[1674053438594,4.0055907,1595.0,1594.9,1.0]
[1674053438909,0.22861924,1595.1,1595.0,1.0]
[1674053439063,1.0914544,1595.2,1595.1,0.68585772]
[1674053439267,1.0914544,1595.2,1595.1,15.72123772]
[1674053439484,1.0414544,1595.2,1595.1,16.72123772]
[1674053439691,1.0414544,1595.2,1595.1,15.72123772]
[1674053440342,1.0414544,1595.2,1595.1,14.47623772]
[1674053441217,1e-08,1595.2,1595.1,14.47623772]
[1674053441740,1e-08,1595.2,1595.1,6.95504772]
[1674053441915,1e-08,1595.2,1595.1,13.22423772]
[1674053442378,1e-08,1595.2,1595.1,14.46723772]
[1674053442898,1e-08,1595.2,1595.1,15.71923772]
[1674053443467,9.65300001,1595.6,1595.1,15.71923772]
[1674053443632,9.65300001,1595.6,1595.1,14.47623772]
[1674053444972,9.65300001,1595.6,1595.1,20.74542772]
[1674053445693,9.65300001,1595.6,1595.1,19.49342772]
[1674053445946,1.0,1595.5,1595.1,19.49342772]
[1674053446314,0.75,1595.5,1595.1,13.22423772]
[1674053448133,0.75,1595.5,1595.1,0.68585772]
[1674053448418,20.80789,1595.5,1595.1,0.68585772]
[1674053448646,20.90689,1595.5,1595.1,0.68585772]
[1674053450886,15.90689,1595.5,1595.1,0.68585772]
[1674053451099,12.53682,1595.3,1595.1,0.68585772]
[1674053451248,6.36741,1595.3,1595.1,0.68585772]
[1674053451454,0.099,1595.3,1595.1,0.68585772]
[1674053451668,1.0,1595.3,1595.1,0.68585772]
[1674053452534,35.14694,1595.4,1595.1,0.68585772]
[1674053453092,1.0,1595.3,1595.1,0.68585772]
[1674053453459,7.26846,1595.3,1595.1,0.68585772]
[1674053453667,7.36746,1595.3,1595.1,0.68585772]
[1674053454004,0.099,1595.3,1595.1,6.95502772]
[1674053454194,21.3554,1595.4,1595.1,19.49340772]
[1674053455766,0.099,1595.4,1595.1,19.49340772]
[1674053455975,9.65300001,1595.6,1595.1,19.49340772]
[1674053456661,0.099,1595.6,1595.1,19.49340772]
[1674053456821,6.3661,1595.7,1595.1,19.49340772]
[1674053457412,0.099,1595.7,1595.1,19.49340772]
[1674053457555,31.1152,1595.8,1595.3,18.80463]
[1674053457764,31.1152,1595.8,1595.7,0.099]
[1674053458183,0.099,1595.8,1595.7,0.099]
[1674053458465,7.62007,1595.9,1595.7,0.099]
[1674053458600,13.88614,1595.9,1595.7,0.099]
[1674053459026,7.62007,1595.9,1595.7,0.099]
[1674053460341,20.15221,1595.9,1595.7,0.099]
[1674053460655,13.88614,1595.9,1595.7,0.099]
[1674053461552,1.354,1595.9,1595.7,0.099]
[1674053461757,7.76149166,1596.0,1595.7,0.099]
[1674053461967,6.50649166,1596.0,1595.7,0.099]
[1674053462234,0.24056166,1596.0,1595.7,6.3658]
[1674053462439,0.14156166,1596.0,1595.7,6.3658]
[1674053462660,20.19362166,1596.0,1595.7,0.099]
[1674053462964,20.29262166,1596.0,1595.7,0.099]
[1674053463193,0.24056166,1596.0,1595.7,18.89946]
[1674053463333,0.14156166,1596.0,1595.7,18.89946]
[1674053464023,22.7847,1596.1,1595.7,18.89946]
[1674053464384,0.099,1596.1,1595.9,1.0]
[1674053464655,0.14715236,1596.2,1595.9,18.79815]
[1674053466643,0.14715236,1596.2,1596.1,6.26527]
[1674053466818,0.14715236,1596.2,1596.0,6.33135]
[1674053467031,0.14715236,1596.2,1596.0,12.53101]
[1674053467884,0.14715236,1596.2,1596.0,6.26535]
[1674053468313,0.09715236,1596.2,1595.9,0.066]
[1674053468537,1.255,1596.1,1595.8,6.26615]
[1674053468694,1.255,1596.1,1595.7,6.43153]
[1674053468906,1.255,1596.1,1595.6,6.33309]
[1674053469115,1.255,1596.0,1595.5,12.60086]
[1674053469329,1.255,1595.9,1595.5,6.26743]
[1674053469550,23.2239,1596.1,1595.5,12.5348]
[1674053469761,29.48922,1596.1,1595.5,12.5348]
[1674053469955,35.75454,1596.1,1595.5,12.5348]
[1674053471207,35.75454,1596.1,1595.5,6.26737]
[1674053471424,35.75454,1596.1,1595.4,6.33391]
[1674053471425,1.253,1595.6,1595.4,0.066]
[1674053471647,1.253,1595.6,1595.2,12.53727]
[1674053471899,0.099,1595.8,1595.4,6.26796]
[1674053472116,9.4242,1596.0,1595.5,1.08833227]
[1674053472331,0.099,1596.0,1595.5,1.74144599]
[1674053472475,21.9819,1596.1,1595.6,27.32318]
[1674053472959,21.9819,1596.1,1595.8,18.79911]
[1674053473106,0.099,1596.1,1595.8,18.79418]
[1674053473335,0.09715236,1596.2,1595.8,18.79418]
[1674053474497,0.09715236,1596.2,1595.8,12.52781]
[1674053475116,0.09715236,1596.2,1595.8,6.26144]
[1674053475347,0.09715236,1596.2,1595.7,6.3328]
[1674053475348,1.255,1596.1,1595.7,6.3328]
[1674053475676,1.255,1596.1,1595.7,6.2668]
[1674053476117,13.98111236,1596.2,1595.7,6.2668]
[1674053476480,0.19615236,1596.2,1595.7,12.53364]
[1674053476726,0.09715236,1596.2,1595.7,12.53364]
[1674053476935,0.09715236,1596.2,1595.8,1.0]
[1674053477163,0.09715236,1596.2,1595.9,12.53199]
[1674053478634,6.36204236,1596.2,1595.8,6.33228]
[1674053478870,6.46104236,1596.2,1595.8,6.26628]
[1674053479179,13.97593236,1596.2,1595.8,6.26628]
[1674053479339,13.97593236,1596.2,1595.7,12.59916]
[1674053479550,13.97593236,1596.2,1595.7,6.26651]
[1674053479551,1.255,1596.1,1595.7,6.26651]
[1674053479768,13.78556,1596.1,1595.7,6.26651]
[1674053480024,13.78556,1596.1,1595.6,6.33296]
[1674053480025,12.62956,1596.1,1595.6,6.33296]
[1674053480183,13.87956,1596.1,1595.6,6.26696]
[1674053480558,13.87956,1596.1,1595.5,6.33331]
[1674053480559,12.62956,1596.1,1595.5,6.33331]
[1674053480706,1.255,1595.7,1595.4,6.33367]
[1674053480915,1.255,1595.7,1595.4,6.26767]
[1674053481336,6.26646,1595.8,1595.4,6.26767]
[1674053481337,6.36546,1595.8,1595.4,6.26767]
[1674053481756,6.36546,1595.8,1595.4,18.80371]
[1674053481757,0.099,1595.8,1595.4,18.80371]
[1674053482072,21.9777,1595.9,1595.4,18.80371]
[1674053482319,40.77604,1595.9,1595.3,0.066]
[1674053482539,40.77604,1595.9,1595.2,12.53743]
[1674053482865,40.77604,1595.9,1595.2,18.80623]
[1674053483019,1.255,1595.8,1595.3,1.0]
[1674053483230,7.52145,1595.8,1595.4,6.26799]
[1674053483445,1.354,1595.8,1595.4,6.26799]
[1674053483785,1.255,1595.8,1595.4,6.26799]
[1674053484380,7.52151,1595.8,1595.4,6.26799]
[1674053484594,7.62051,1595.8,1595.4,6.26799]
[1674053484839,6.36551,1595.8,1595.4,6.26799]
[1674053485330,2.242,1595.7,1595.3,0.066]
[1674053485539,6.26731,1595.6,1595.1,20.81837772]
[1674053485783,6.36631,1595.6,1595.1,13.22377772]
[1674053485993,5.20522515,1595.6,1595.5,0.0140091]
[1674053486406,11.47253515,1595.6,1595.5,0.0140091]
[1674053487382,18.99484515,1595.6,1595.5,0.0140091]
[1674053488162,19.99484515,1595.6,1595.5,0.0140091]
[1674053488374,1.0,1595.5,1595.1,0.68585772]
[1674053488619,12.53682,1595.3,1595.1,0.68585772]
[1674053488846,12.63582,1595.3,1595.1,0.68585772]
[1674053489515,18.90423,1595.3,1595.1,0.68585772]
[1674053490958,20.15923,1595.3,1595.1,0.68585772]
[1674053491143,2.255,1595.2,1595.1,0.68585772]
[1674053491314,20.0614,1595.2,1595.1,0.68585772]
[1674053491687,20.1604,1595.2,1595.1,0.68585772]
[1674053493681,21.4154,1595.2,1595.1,0.68585772]
[1674053494323,25.1610176,1595.2,1595.1,0.68585772]
[1674053494481,21.4154,1595.2,1595.1,0.68585772]
[1674053494691,20.1604,1595.2,1595.1,0.68585772]
[1674053495591,21.4154,1595.2,1594.9,0.06779759]
[1674053495740,2.508,1595.0,1594.9,0.06779759]
[1674053495951,25.07836,1595.0,1594.9,0.06779759]
[1674053496208,25.17736,1595.0,1594.9,0.06779759]
[1674053497778,26.41936,1595.0,1594.9,0.06779759]
[1674053498933,25.76600485,1595.0,1594.9,0.06779759]
[1674053502875,18.25441485,1595.0,1594.9,0.06779759]
[1674053503455,0.099,1595.0,1594.9,0.06779759]
[1674053503708,0.003,1595.0,1594.9,0.06779759]
[1674053503942,6.26959,1595.0,1594.9,0.06779759]
[1674053504148,0.099,1595.0,1594.9,0.06779759]
[1674053504344,6.36797,1595.2,1594.9,0.06779759]
[1674053504551,0.099,1595.2,1594.9,6.33777759]
[1674053504766,6.26882,1595.2,1594.9,0.06779759]
[1674053504973,6.36782,1595.2,1594.9,0.06779759]
[1674053505385,0.099,1595.2,1594.9,12.60775759]
[1674053505686,0.099,1595.5,1595.0,1.255]
[1674053505920,28.09695,1595.7,1595.1,18.80711]
[1674053506104,28.19595,1595.7,1595.1,18.80711]
[1674053506350,0.099,1595.7,1595.2,1.255]
[1674053506566,28.4032,1595.9,1595.3,12.53642]
[1674053507201,1.0,1595.8,1595.3,12.53642]
[1674053507627,7.26649,1595.8,1595.3,6.26821]
[1674053507839,8.62049,1595.8,1595.2,6.33474]
[1674053508162,14.88698,1595.8,1595.2,6.26874]
[1674053508311,1.253,1595.7,1595.2,6.26874]
[1674053508517,6.26723,1595.6,1595.1,6.335]
[1674053508777,6.36623,1595.6,1595.1,6.269]
[1674053510056,14.88846,1595.6,1595.0,0.066]
[1674053510218,12.53635,1595.4,1594.9,0.06779759]
[1674053510407,12.63535,1595.4,1594.9,0.06779759]
[1674053513355,1.255,1595.3,1594.9,0.06779759]
[1674053513563,6.26888,1595.2,1594.9,0.06779759]
[1674053513776,6.36788,1595.2,1594.9,0.06779759]
[1674053514335,12.63676,1595.2,1594.9,0.06779759]
[1674053514716,13.87876,1595.2,1594.9,0.06779759]
[1674053515138,1.0,1595.1,1594.9,0.06779759]
[1674053515461,1.252,1595.1,1594.9,0.06779759]
[1674053515678,6.26959,1595.0,1594.9,0.06779759]
[1674053515879,6.36859,1595.0,1594.9,0.06779759]
[1674053516089,12.63818,1595.0,1594.9,0.06779759]
[1674053516965,18.90777,1595.0,1594.9,0.06779759]
[1674053517176,20.15277,1595.0,1594.9,0.06779759]
[1674053521740,6.36859,1595.0,1594.9,0.06779759]
[1674053521929,1.113,1595.0,1594.9,0.06779759]
[1674053522255,30.00235,1595.1,1594.9,0.06779759]
[1674053522450,35.0169,1595.1,1594.9,0.06779759]
[1674053523568,36.2589,1595.1,1594.9,0.06779759]
[1674053524008,42.52845,1595.1,1594.9,0.06779759]
[1674053524494,1.255,1595.0,1594.9,0.06779759]
[1674053524638,20.06377,1595.0,1594.9,0.06779759]